fUST/lending_fUST_20250630
["ID","MTS","AMOUNT","RATE_DAILY","PERIOD"]
[368674730,1751291450723,-460.0,0.00020357,2]
[368674731,1751291450732,-460.0,0.00020357,2]
[368674732,1751291450743,-460.0,0.00020357,2]
[368674733,1751291450752,-2812.71,0.00020357,2]
[368674734,1751291450763,-460.0,0.00020357,2]
[368674735,1751291450774,-460.0,0.00020357,2]
[368674736,1751291450783,-675.68,0.00020357,2]
[368674737,1751291450793,-721.25,0.00020357,2]
[368674738,1751291450802,-200.0,0.0002038,2]
[368674739,1751291450812,-151.0,0.000204,3]
[368674740,1751291450821,-151.0,0.000204,4]
[368674741,1751291450831,-12569.13231816,0.000204,3]
[368674742,1751291450840,-847.41730813,0.000204,3]
[368674743,1751291450850,-803.0,0.000204,2]
[368674744,1751291450860,-524.55407094,0.000204,3]
[368674745,1751291450869,-160.0,0.000204,3]
[368674746,1751291450878,-213.84631524,0.000204,3]
[368674747,1751291450887,-425.68,0.00020401,2]
[368674748,1751291450897,-460.0,0.00020401,2]
[368674749,1751291450906,-460.0,0.00020401,2]
[368674750,1751291450916,-460.0,0.00020401,2]
[368674751,1751291450925,-460.0,0.00020401,2]
[368674752,1751291450934,-2766.7,0.00020401,2]
[368674753,1751291450943,-460.0,0.00020401,2]
[368674754,1751291450952,-1052.18,0.00020401,2]
[368674755,1751291450962,-460.0,0.00020402,2]
[368674756,1751291450972,-969.85,0.00020403,2]
[368674757,1751291450982,-620.84,0.00020403,2]
[368674758,1751291450992,-1523.76,0.00020403,2]
[368674759,1751291451001,-460.0,0.00020403,2]
[368674760,1751291451010,-671.53,0.00020403,2]
[368674761,1751291451020,-1247.67,0.00020403,2]
[368674762,1751291451033,-601.1,0.00020403,2]
[368674763,1751291451042,-155.18730193,0.00020411,2]
[368674764,1751291451051,-3881.0,0.00020417,2]
[368674765,1751291451061,-1500.0,0.00020429,2]
[368674766,1751291451071,-1500.0,0.00020431,2]
[368674767,1751291451081,-186.77900973,0.00020438,2]
[368674768,1751291451090,-160.0,0.0002046,3]
[368674769,1751291451101,-215.0738,0.00020471,2]
[368674770,1751291451110,-71918.80900951,0.000205,3]
[368674771,1751291451120,-151.0,0.000205,4]
[368674772,1751291451130,-151.0,0.000205,2]
[368674773,1751291451140,-151.0,0.000205,2]
[368674774,1751291451149,-151.0,0.000205,2]
[368674775,1751291451158,-172.4531322,0.000205,2]
[368674776,1751291451168,-151.0,0.000205,2]
[368674777,1751291451178,-151.0,0.000205,2]
[368674778,1751291451188,-151.0,0.000205,2]
[368674779,1751291451197,-151.0,0.000205,2]
[368674780,1751291451207,-151.0,0.000205,2]
[368674781,1751291451215,-151.0,0.000205,2]
[368674782,1751291451225,-151.0,0.000205,4]
[368674783,1751291451234,-154.180814,0.000205,2]
[368674784,1751291451244,-151.0,0.000205,2]
[368674785,1751291451253,-151.0,0.000205,2]
[368674786,1751291451263,-151.0,0.000205,2]
[368674787,1751291451272,-151.0,0.000205,2]
[368674788,1751291451281,-151.0,0.000205,2]
[368674789,1751291451291,-151.0,0.000205,2]
[368674790,1751291451300,-151.0,0.000205,2]
[368674791,1751291451310,-151.0,0.000205,2]
[368674792,1751291451319,-183.381365,0.000205,2]
[368674793,1751291451328,-183.381365,0.000205,2]
[368674794,1751291451442,-847.41730813,0.000205,3]
[368674795,1751291451452,-151.0,0.000205,2]
[368674796,1751291451462,-524.55407094,0.000205,3]
[368674797,1751291451471,-151.0,0.000205,2]
[368674798,1751291451481,-151.0,0.000205,2]
[368674799,1751291451490,-151.0,0.000205,2]
[368674800,1751291451499,-311.356251,0.000205,2]
[368674801,1751291451510,-311.356251,0.000205,2]
[368674802,1751291451520,-267.767598,0.000205,2]
[368674803,1751291451530,-213.84631524,0.000205,3]
[368674804,1751291451539,-151.0,0.000205,2]
[368674805,1751291451548,-188.460285,0.000205,2]
[368674806,1751291451557,-151.0,0.000205,2]
[368674807,1751291451567,-151.0,0.000205,2]
[368674808,1751291451578,-151.0,0.000205,2]
[368674809,1751291451587,-500.0,0.00020547,14]
[368674810,1751291451598,-186.77900973,0.00020548,2]
[368674811,1751291451607,-1500.0,0.00020551,2]
[368674812,1751291451617,-1004.79287362,0.00020563,2]
[368674813,1751291451627,-160.0,0.0002059,3]
[368674814,1751291451638,-5870.28,0.000206,2]
[368674815,1751291451647,-366.3004382,0.00020603,2]
[368674816,1751291451656,-366.3004382,0.00020603,2]
[368674817,1751291451666,-366.3004382,0.00020603,2]
[368674818,1751291451676,-51561.18,0.0002063,2]
[368674819,1751291451686,-151.0,0.0002063,2]
[368674820,1751291451696,-151.0,0.0002063,2]
[368674821,1751291451706,-151.0,0.0002063,2]
[368674822,1751291451715,-151.0,0.0002063,2]
[368674823,1751291451725,-151.0,0.0002063,2]
[368674824,1751291451734,-183.381365,0.0002063,2]
[368674825,1751291451744,-460.0,0.0002063,2]
[368674826,1751291451754,-183.381365,0.0002063,2]
[368674827,1751291451764,-1593.03,0.0002063,2]
[368674828,1751291451773,-1540.56,0.0002063,2]
[368674829,1751291451783,-460.0,0.0002063,2]
[368674830,1751291451793,-460.0,0.0002063,2]
[368674831,1751291451803,-151.0,0.0002063,2]
[368674832,1751291451813,-151.0,0.0002063,2]
[368674833,1751291451823,-1828.37,0.0002063,2]
[368674834,1751291451832,-311.356251,0.0002063,2]
[368674835,1751291451842,-311.356251,0.0002063,2]
[368674836,1751291451853,-1762.46,0.0002063,2]
[368674837,1751291451863,-2298.03,0.0002063,2]
[368674838,1751291451873,-976.95,0.0002063,2]
[368674839,1751291451882,-553.48,0.0002063,2]
[368674840,1751291451892,-1087.71,0.0002063,2]
[368674841,1751291451902,-460.0,0.0002063,2]
[368674842,1751291451911,-460.0,0.0002063,2]
[368674843,1751291451921,-460.0,0.00020631,2]
[368674844,1751291451930,-1092.05,0.00020631,2]
[368674845,1751291451939,-460.0,0.00020631,2]
[368674846,1751291451949,-460.0,0.00020631,2]
[368674847,1751291451958,-460.0,0.00020631,2]
[368674848,1751291451967,-460.0,0.00020631,2]
[368674849,1751291451977,-628.86,0.00020631,2]
[368674850,1751291451987,-460.0,0.00020631,2]
[368674851,1751291451996,-1908.47,0.00020631,2]
[368674852,1751291452006,-460.0,0.00020631,2]
[368674853,1751291452015,-460.0,0.00020631,2]
[368674854,1751291452030,-460.0,0.00020631,2]
[368674855,1751291452040,-460.0,0.00020631,2]
[368674856,1751291452050,-2812.71,0.00020631,2]
[368674857,1751291452060,-460.0,0.00020631,2]
[368674858,1751291452071,-460.0,0.00020631,2]
[368674859,1751291452080,-675.68,0.00020631,2]
[368674860,1751291452090,-721.25,0.00020631,2]
[368674861,1751291452102,-186.77900973,0.00020658,2]
[368674862,1751291452112,-460.0,0.00020675,2]
[368674863,1751291452122,-460.0,0.00020675,2]
[368674864,1751291452132,-460.0,0.00020675,2]
[368674865,1751291452141,-460.0,0.00020675,2]
[368674866,1751291452150,-2766.7,0.00020675,2]
[368674867,1751291452160,-460.0,0.00020675,2]
[368674868,1751291452169,-1052.18,0.00020675,2]
[368674869,1751291452178,-151.0,0.00020675,2]
[368674870,1751291452189,-151.0,0.00020675,2]
[368674871,1751291452198,-460.0,0.00020676,2]
[368674872,1751291452207,-969.85,0.00020677,2]
[368674873,1751291452217,-620.84,0.00020677,2]
[368674874,1751291452226,-1523.76,0.00020677,2]
[368674875,1751291452236,-460.0,0.00020677,2]
[368674876,1751291452245,-671.53,0.00020677,2]
[368674877,1751291452255,-1247.67,0.00020677,2]
[368674878,1751291452264,-601.1,0.00020677,2]
[368674879,1751291452273,-151.0,0.000207,4]
[368674880,1751291452283,-151.0,0.00020727,2]
[368674881,1751291452292,-151.0,0.00020727,2]
[368674882,1751291452301,-151.0,0.00020727,2]
[368674883,1751291452311,-151.0,0.00020727,2]
[368674884,1751291452320,-186.77900973,0.0002074,2]
[368674885,1751291452329,-1747.183128,0.0002074,2]
[368674886,1751291452339,-257.0,0.0002074,2]
[368674887,1751291452351,-5000.0,0.00020746,2]
[368674888,1751291452361,-500.0,0.00020799,2]
[368674889,1751291452370,-151.0,0.000208,3]
[368674890,1751291452379,-500.0,0.00020802,2]
[368674891,1751291452388,-8549.29735894,0.00020804,2]
[368674892,1751291452398,-186.77900973,0.00020849,2]
[368674893,1751291452407,-460.0,0.00020904,2]
[368674894,1751291452417,-1593.03,0.00020904,2]
[368674895,1751291452426,-1540.56,0.00020904,2]
[368674896,1751291452436,-460.0,0.00020904,2]
[368674897,1751291452446,-460.0,0.00020904,2]
[368674898,1751291452456,-1828.37,0.00020904,2]
[368674899,1751291452466,-1762.46,0.00020904,2]
[368674900,1751291452475,-2298.03,0.00020904,2]
[368674901,1751291452485,-976.95,0.00020904,2]
[368674902,1751291452494,-1087.71,0.00020904,2]
[368674903,1751291452503,-460.0,0.00020904,2]
[368674904,1751291452512,-460.0,0.00020904,2]
[368674905,1751291452521,-460.0,0.00020905,2]
[368674906,1751291452531,-1092.05,0.00020905,2]
[368674907,1751291452541,-460.0,0.00020905,2]
[368674908,1751291452550,-460.0,0.00020905,2]
[368674909,1751291452561,-460.0,0.00020905,2]
[368674910,1751291452571,-530.4,0.00020905,2]
[368674911,1751291452580,-628.86,0.00020905,2]
[368674912,1751291452589,-315.57,0.00020905,2]
[368674913,1751291452600,-1908.47,0.00020905,2]
[368674914,1751291452609,-524.53,0.00020905,2]
[368674915,1751291452618,-288.45,0.00020905,2]
[368674916,1751291452627,-460.0,0.00020905,2]
[368674917,1751291452637,-460.0,0.00020905,2]
[368674918,1751291452647,-2812.71,0.00020905,2]
[368674919,1751291452657,-460.0,0.00020905,2]
[368674920,1751291452666,-460.0,0.00020905,2]
[368674921,1751291452675,-675.68,0.00020905,2]
[368674922,1751291452684,-721.25,0.00020905,2]
[368674923,1751291452693,-186.77900973,0.00020932,2]
[368674924,1751291452703,-151.0,0.00020948,2]
[368674925,1751291452712,-153.729187,0.00020949,2]
[368674926,1751291452723,-151.0,0.00020949,2]
[368674927,1751291452733,-151.0,0.00020949,2]
[368674928,1751291452743,-151.0,0.00020949,2]
[368674929,1751291452752,-460.0,0.00020949,2]
[368674930,1751291452762,-460.0,0.00020949,2]
[368674931,1751291452771,-460.0,0.00020949,2]
[368674932,1751291452780,-460.0,0.00020949,2]
[368674933,1751291452790,-2766.7,0.00020949,2]
[368674934,1751291452799,-460.0,0.00020949,2]
[368674935,1751291452808,-1052.18,0.00020949,2]
[368674936,1751291452818,-151.0,0.00020949,2]
[368674937,1751291452827,-151.0,0.00020949,2]
[368674938,1751291452836,-460.0,0.0002095,2]
[368674939,1751291452845,-969.85,0.00020951,2]
[368674940,1751291452855,-620.84,0.00020951,2]
[368674941,1751291452864,-1523.76,0.00020951,2]
[368674942,1751291452873,-460.0,0.00020951,2]
[368674943,1751291452882,-671.53,0.00020951,2]
[368674944,1751291452891,-1247.67,0.00020951,2]
[368674945,1751291452901,-601.1,0.00020951,2]
[368674946,1751291452911,-4012.70700666,0.00020957,2]
[368674947,1751291452920,-151.0,0.00020957,4]
[368674948,1751291452929,-12500.0,0.00020959,2]
[368674949,1751291452939,-151.0,0.00020968,2]
[368674950,1751291452948,-151.0,0.00020968,2]
[368674951,1751291452958,-151.0,0.00020968,2]
[368674952,1751291452967,-221.02644,0.00020968,2]
[368674953,1751291452977,-2000.0,0.00020977,2]
[368674954,1751291452987,-2000.0,0.00020979,2]
[368674955,1751291452996,-15097.10514394,0.00021,2]
[368674956,1751291453006,-3000.0,0.00021,2]
[368674957,1751291453015,-269.2613714,0.00021,2]
[368674958,1751291453027,-5236.755358,0.00021,2]
[368674959,1751291453037,-201.41078376,0.00021,2]
[368674960,1751291453047,-18811.44683482,0.00021,2]
[368674961,1751291453057,-229.45793966,0.00021,2]
[368674962,1751291453066,-151.0,0.00021,2]
[368674963,1751291453077,-150.0,0.00021,5]
[368674964,1751291453087,-151.0,0.00021,2]
[368674965,1751291453097,-150.0,0.00021,30]
[368674966,1751291453108,-183.381365,0.00021,2]
[368674967,1751291453118,-183.381365,0.00021,2]
[368674968,1751291453128,-151.0,0.00021,2]
[368674969,1751291453138,-215.207338,0.00021,2]
[368674970,1751291453148,-311.356251,0.00021,2]
[368674971,1751291453159,-311.356251,0.00021,2]
[368674972,1751291453169,-151.0,0.00021,2]
[368674973,1751291453178,-151.0,0.00021,2]
[368674974,1751291453188,-1000.0,0.00021,2]
[368674975,1751291453197,-3000.0,0.0002101,2]
[368674976,1751291453207,-500.0,0.00021018,2]
[368674977,1751291453217,-3000.0,0.0002102,2]
[368674978,1751291453226,-151.0,0.0002102,2]
[368674979,1751291453236,-3000.0,0.0002103,2]
[368674980,1751291453246,-3000.0,0.0002104,2]
[368674981,1751291453255,-732.4710557,0.00021041,2]
[368674982,1751291453264,-3000.0,0.0002105,2]
[368674983,1751291453274,-23246.62924273,0.0002106,2]
[368674984,1751291453997,150.0,0.00015854,2]
[368674987,1751291507549,300.776919,0.00017693,2]
[368675113,1751291585560,294.318927,0.00013699,2]
[368675607,1751291701723,7795.95,0.0001811,2]
[368675712,1751291801867,24900.0,0.00017339,2]
[368676363,1751291974813,1582.4408385,0.00017264,2]
[368676798,1751292165293,500.0,0.00018085,2]
[368676803,1751292506884,-205.85883205,0.00018137,2]
[368676804,1751292507899,-36.38333702,0.00018137,2]
[368676808,1751292560187,300.776919,0.00017239,2]
[368676861,1751292632620,-514.57157823,0.0001823,3]
[368676863,1751292632633,-62.28842177,0.0001823,3]
[368676865,1751292632642,-300.0,0.00018235,2]
[368676867,1751292632651,-689.38276773,0.00018235,2]
[368676870,1751292632662,-510.61723227,0.00018235,2]
[368676872,1751292632672,-645.0,0.00018236,2]
[368676874,1751292632681,-460.0,0.00018236,2]
[368676876,1751292632690,-460.0,0.00018236,2]
[368676877,1751292632700,-434.43435421,0.00018236,2]
[368676879,1751292632709,-460.0,0.00018236,2]
[368676881,1751292632718,-464.79780348,0.00018236,2]
[368676882,1751292632727,-460.0,0.00018236,2]
[368676883,1751292632737,-460.0,0.00018236,2]
[368676884,1751292632746,-460.0,0.00018237,2]
[368676886,1751292632755,-460.0,0.00018237,2]
[368676888,1751292632764,-460.0,0.00018237,2]
[368676890,1751292632774,-460.0,0.00018237,2]
[368676892,1751292632784,-460.0,0.00018237,2]
[368676894,1751292632794,-460.0,0.00018237,2]
[368676896,1751292632804,-460.0,0.00018237,2]
[368676898,1751292632813,-460.0,0.00018237,2]
[368676900,1751292632823,-460.0,0.00018237,2]
[368676902,1751292632832,-460.0,0.00018237,2]
[368676905,1751292632842,-1165.95888235,0.00018237,2]
[368676907,1751292632852,-460.0,0.00018237,2]
[368676909,1751292632862,-85.00322552,0.00018237,2]
[368676920,1751292632962,-374.99677448,0.00018237,2]
[368676922,1751292632971,-377.74329543,0.00018237,2]
[368677019,1751292636379,295.479842,0.00013699,2]
[368677024,1751292638567,-460.0,0.00018236,2]
[368677026,1751292638577,-82.25670457,0.00018237,2]
[368677028,1751292638587,-460.0,0.00018237,2]
[368677030,1751292638596,-460.0,0.00018237,2]
[368677032,1751292638606,-460.0,0.00018237,2]
[368677034,1751292638616,-1254.41680483,0.00018237,2]
[368677036,1751292638697,-1894.19319517,0.00018237,2]
[368677037,1751292638706,-460.0,0.00018237,2]
[368677038,1751292638716,-460.0,0.00018237,2]
[368677039,1751292638725,-460.0,0.00018237,2]
[368677040,1751292638735,-460.0,0.00018237,2]
[368677041,1751292638744,-460.0,0.00018237,2]
[368677042,1751292638753,-460.0,0.00018237,2]
[368677043,1751292638763,-617.24295739,0.00018237,2]
[368677044,1751292638774,-216.64704261,0.00018237,2]
[368677045,1751292638784,-283.35295739,0.00018237,2]
[368677046,1751292638795,-176.64704261,0.00018237,2]
[368677047,1751292638804,-460.0,0.00018237,2]
[368677048,1751292638814,-460.0,0.00018237,2]
[368677049,1751292638823,-460.0,0.00018237,2]
[368677051,1751292638832,-460.0,0.00018237,2]
[368677052,1751292638843,-3121.8,0.00018237,2]
[368677053,1751292638852,-460.0,0.00018237,2]
[368677054,1751292638861,-460.0,0.00018237,2]
[368677055,1751292638871,-3574.5,0.00018237,2]
[368677056,1751292638880,-735.98,0.00018237,2]
[368677057,1751292638890,-460.0,0.00018237,2]
[368677058,1751292638899,-489.67,0.00018237,2]
[368677059,1751292638908,-499.26,0.00018237,2]
[368677060,1751292638917,-460.0,0.00018237,2]
[368677061,1751292638927,-460.0,0.00018237,2]
[368677062,1751292638936,-460.0,0.00018237,2]
[368677063,1751292638945,-460.0,0.00018237,2]
[368677064,1751292638954,-3308.14,0.00018237,2]
[368677065,1751292638963,-460.0,0.00018237,2]
[368677066,1751292638973,-460.0,0.00018237,2]
[368677067,1751292638982,-4178.41,0.00018237,2]
[368677068,1751292638991,-460.0,0.00018237,2]
[368677069,1751292639001,-460.0,0.00018237,2]
[368677070,1751292639010,-460.0,0.00018237,2]
[368677071,1751292639019,-536.59,0.00018237,2]
[368677072,1751292639028,-507.75,0.00018237,2]
[368677073,1751292639037,-460.0,0.00018237,2]
[368677074,1751292639047,-2247.91,0.00018237,2]
[368677075,1751292639056,-460.0,0.00018237,2]
[368677076,1751292639065,-1889.22,0.00018237,2]
[368677077,1751292639074,-460.0,0.00018237,2]
[368677078,1751292639083,-460.0,0.00018237,2]
[368677079,1751292639095,-460.0,0.00018237,2]
[368677080,1751292639104,-500.0,0.00018237,2]
[368677081,1751292639114,-500.0,0.00018237,2]
[368677082,1751292639123,-500.0,0.00018237,2]
[368677083,1751292639132,-500.0,0.00018237,2]
[368677084,1751292639143,-500.0,0.00018237,2]
[368677085,1751292639154,-500.0,0.00018237,2]
[368677086,1751292639163,-500.0,0.00018237,2]
[368677087,1751292639173,-649.69144946,0.00018237,2]
[368677088,1751292639182,-500.0,0.00018237,2]
[368677089,1751292639192,-500.0,0.00018237,2]
[368677090,1751292639202,-500.0,0.00018237,2]
[368677091,1751292639211,-500.0,0.00018237,2]
[368677092,1751292639221,-500.0,0.00018237,2]
[368677093,1751292639231,-500.0,0.00018237,2]
[368677094,1751292639240,-500.0,0.00018237,2]
[368677095,1751292639249,-500.0,0.00018237,2]
[368677096,1751292639259,-608.65350606,0.00018237,2]
[368677097,1751292639268,-500.0,0.00018237,2]
[368677098,1751292639277,-500.0,0.00018237,2]
[368677099,1751292639286,-500.0,0.00018237,2]
[368677100,1751292639295,-500.0,0.00018237,2]
[368677101,1751292639305,-500.0,0.00018237,2]
[368677102,1751292639314,-625.97315296,0.00018237,2]
[368677103,1751292639324,-500.0,0.00018237,2]
[368677104,1751292639333,-500.0,0.00018237,2]
[368677105,1751292639348,-460.0,0.00018237,2]
[368677106,1751292639486,-500.0,0.00018237,2]
[368677107,1751292639504,-500.0,0.00018237,2]
[368677108,1751292639513,-500.0,0.00018237,2]
[368677109,1751292639523,-500.0,0.00018238,2]
[368677110,1751292639534,-460.0,0.00018238,2]
[368677111,1751292639543,-460.0,0.00018238,2]
[368677112,1751292639552,-460.0,0.00018238,2]
[368677113,1751292639561,-180.44949262,0.00018238,2]
[368677114,1751292639571,-460.55313794,0.00018238,2]
[368677115,1751292639580,-460.0,0.00018238,2]
[368677116,1751292639590,-460.0,0.00018238,2]
[368677117,1751292639599,-460.0,0.00018238,2]
[368677118,1751292639609,-460.0,0.00018238,2]
[368677119,1751292639618,-322.50935835,0.00018238,2]
[368677120,1751292639627,-460.0,0.00018238,2]
[368677121,1751292639637,-460.0,0.00018238,2]
[368677122,1751292639646,-460.0,0.00018238,2]
[368677123,1751292639655,-460.0,0.00018238,2]
[368677124,1751292639665,-460.0,0.00018238,2]
[368677125,1751292639674,-460.0,0.00018238,2]
[368677126,1751292639683,-460.0,0.00018238,2]
[368677127,1751292639693,-548.28388876,0.00018238,2]
[368677128,1751292639702,-460.0,0.00018238,2]
[368677129,1751292639712,-460.0,0.00018238,2]
[368677130,1751292639721,-460.0,0.00018238,2]
[368677131,1751292639731,-461.20224027,0.00018238,2]
[368677132,1751292639741,-460.0,0.00018238,2]
[368677133,1751292639750,-460.0,0.00018238,2]
[368677134,1751292639760,-405.22657715,0.00018238,2]
[368677135,1751292639769,-460.0,0.00018238,2]
[368677136,1751292639779,-460.0,0.00018238,2]
[368677137,1751292639788,-474.4225851,0.00018238,2]
[368677138,1751292639797,-460.0,0.00018238,2]
[368677139,1751292639806,-460.0,0.00018238,2]
[368677140,1751292639815,-460.0,0.00018238,2]
[368677141,1751292639825,-602.93456521,0.00018238,2]
[368677142,1751292639834,-460.0,0.00018238,2]
[368677143,1751292639850,-500.0,0.00018238,2]
[368677144,1751292639859,-460.0,0.00018238,2]
[368677145,1751292639869,-460.0,0.00018238,2]
[368677146,1751292639878,-460.0,0.00018238,2]
[368677147,1751292639887,-2144.16,0.00018238,2]
[368677148,1751292639896,-560.83,0.00018238,2]
[368677149,1751292639906,-460.0,0.00018238,2]
[368677150,1751292639915,-460.0,0.00018238,2]
[368677151,1751292639925,-460.0,0.00018238,2]
[368677152,1751292639934,-494.44,0.00018238,2]
[368677153,1751292639944,-460.0,0.00018238,2]
[368677154,1751292639953,-460.0,0.00018238,2]
[368677155,1751292639963,-474.90166585,0.00018238,2]
[368677156,1751292639972,-460.0,0.00018238,2]
[368677157,1751292639982,-508.1,0.00018238,2]
[368677158,1751292639991,-460.0,0.00018238,2]
[368677159,1751292640000,-460.0,0.00018238,2]
[368677160,1751292640009,-460.0,0.00018238,2]
[368677161,1751292640018,-460.0,0.00018238,2]
[368677162,1751292640027,-684.32,0.00018238,2]
[368677163,1751292640037,-460.0,0.00018238,2]
[368677164,1751292640046,-460.0,0.00018238,2]
[368677165,1751292640055,-460.0,0.00018238,2]
[368677166,1751292640064,-460.0,0.00018238,2]
[368677167,1751292640073,-460.0,0.00018238,2]
[368677168,1751292640082,-460.0,0.00018238,2]
[368677169,1751292640093,-472.61,0.00018238,2]
[368677170,1751292640102,-460.0,0.00018238,2]
[368677171,1751292640112,-460.0,0.00018238,2]
[368677172,1751292640121,-460.0,0.00018238,2]
[368677173,1751292640131,-460.0,0.00018238,2]
[368677174,1751292640140,-460.0,0.00018238,2]
[368677175,1751292640150,-1538.37,0.00018238,2]
[368677176,1751292640159,-1538.37,0.00018238,2]
[368677177,1751292640168,-610.8,0.00018238,2]
[368677178,1751292640178,-460.0,0.00018238,2]
[368677179,1751292640187,-460.0,0.00018238,2]
[368677180,1751292640197,-460.0,0.00018238,2]
[368677181,1751292640206,-460.0,0.00018238,2]
[368677182,1751292640215,-512.53,0.00018238,2]
[368677183,1751292640224,-460.0,0.00018238,2]
[368677184,1751292640233,-460.0,0.00018238,2]
[368677185,1751292640242,-460.0,0.00018238,2]
[368677186,1751292640251,-460.0,0.00018238,2]
[368677187,1751292640260,-251.86662136,0.00018238,2]
[368677188,1751292640270,-1233.39,0.00018238,2]
[368677189,1751292640279,-460.0,0.00018238,2]
[368677190,1751292640288,-460.0,0.00018238,2]
[368677191,1751292640297,-585.62170476,0.00018238,2]
[368677192,1751292640306,-478.91,0.00018238,2]
[368677194,1751292640315,-460.0,0.00018238,2]
[368677196,1751292640324,-460.0,0.00018238,2]
[368677198,1751292640333,-460.0,0.00018238,2]
[368677199,1751292640345,-460.0,0.00018238,2]
[368677200,1751292640354,-4803.33,0.00018238,2]
[368677201,1751292640363,-460.0,0.00018238,2]
[368677202,1751292640372,-460.0,0.00018238,2]
[368677203,1751292640381,-460.0,0.00018238,2]
[368677204,1751292640391,-460.0,0.00018238,2]
[368677205,1751292640400,-460.0,0.00018238,2]
[368677206,1751292640409,-460.0,0.00018238,2]
[368677207,1751292640419,-17225.12927895,0.00018238,2]
[368677208,1751292640428,-500.0,0.00018239,2]
[368677209,1751292640438,-460.0,0.00018239,2]
[368677210,1751292640448,-460.0,0.00018239,2]
[368677211,1751292640459,-460.0,0.00018239,2]
[368677212,1751292640469,-460.0,0.00018239,2]
[368677213,1751292640479,-460.0,0.00018239,2]
[368677214,1751292640493,-460.0,0.00018239,2]
[368677215,1751292640502,-460.0,0.00018239,2]
[368677216,1751292640512,-460.0,0.00018239,2]
[368677217,1751292640522,-460.0,0.00018239,2]
[368677218,1751292640531,-1099.82,0.00018239,2]
[368677219,1751292640542,-460.0,0.00018239,2]
[368677220,1751292640551,-460.0,0.00018239,2]
[368677221,1751292640562,-460.0,0.00018239,2]
[368677222,1751292640573,-460.0,0.00018239,2]
[368677223,1751292640583,-460.0,0.00018239,2]
[368677224,1751292640594,-624.33,0.00018239,2]
[368677225,1751292640603,-460.0,0.00018239,2]
[368677226,1751292640613,-1538.37,0.00018239,2]
[368677227,1751292640622,-1538.37,0.00018239,2]
[368677228,1751292640631,-1538.37,0.00018239,2]
[368677229,1751292640641,-1538.37,0.00018239,2]
[368677230,1751292640654,-1538.37,0.00018239,2]
[368677231,1751292640663,-1538.37,0.00018239,2]
[368677232,1751292640672,-1538.37,0.00018239,2]
[368677233,1751292640683,-1538.37,0.00018239,2]
[368677234,1751292640694,-1538.37,0.00018239,2]
[368677235,1751292640703,-1538.37,0.00018239,2]
[368677236,1751292640712,-1538.37,0.00018239,2]
[368677237,1751292640722,-1538.37,0.00018239,2]
[368677238,1751292640731,-1538.37,0.00018239,2]
[368677239,1751292640740,-1538.37,0.00018239,2]
[368677240,1751292640750,-1538.37,0.00018239,2]